[Event "DVM U20w 2019"]
[Site "Braunschweig"]
[Date "2019.12.29"]
[Round "5"]
[White "Peglau, Dora"]
[Black "Caliebe, Nanke"]
[Result "1-0"]
[ECO "D02"]
[WhiteElo "1502"]
[BlackElo "1538"]
[Annotator "NA"]
[PlyCount "109"]
[EventDate "2019.12.27"]
[EventType "team-tourn"]
[EventRounds "7"]
[EventCountry "GER"]
[SourceTitle "playchess.com"]
[Source "ChessBase"]
[SourceQuality "1"]
[WhiteTeam "Schachzentrum Seeblick"]
[BlackTeam "TuRa Harksheide Norderstedt"]
[TimeControl "40/5400+30:1800+30"]

1. d4 {[%emt 0:00:00]} d5 {[%emt 0:00:00]} 2. Nf3 {[%emt 0:00:00]} e6 {[%emt 0:00:00]} 3. Bf4 {[%emt 0:00:00]} Nf6 {[%emt 0:00:42]} 4. e3 {[%emt 0:00:07]} c6 {[%emt 0:01:18]} 5. c4 {[%emt 0:01:07]} Be7 {[%emt 0:04:17]} 6. Nc3 {[%emt 0:02:35]} O-O {[%emt 0:02:36]} 7. Bd3 {[%emt 0:03:47]} Nbd7 {[%emt 0:05:42]} 8. O-O {[%emt 0:04:30]} Re8 {[%emt 0:13:40]} 9. a3 {[%emt 0:08:58]} a5 {[%emt 0:04:19]} 10. c5 {[%emt 0:13:56]} b5 {[%emt 0:15:30]} 11. Qc2 {[%emt 0:24:58]} Nf8 {[%emt 0:06:45]} 12. Ne5 {[%emt 0:02:50]} Bb7 {[%emt 0:04:09]} 13. Nxb5 {[%emt 0:07:16]} cxb5 {[%emt 0:18:47]} 14. Bxb5 {[%emt 0:00:32]} Ba6 15. Bxe8 {[%emt 0:04:12]} Qxe8 {[%emt 0:06:06]} 16. Rfc1 {[%emt 0:01:03]} N8d7 {[%emt 0:05:23]} 17. b4 {[%emt 0:03:53]} Nxe5 {[%emt 0:02:49]} 18. Bxe5 {[%emt 0:00:45]} Bc4 {[%emt 0:02:37]} 19. Rcb1 {[%emt 0:03:03]} axb4 {[%emt 0:02:22]} 20. axb4 {[%emt 0:00:22]} Nd7 {[%emt 0:00:47]} 21. Bg3 {[%emt 0:01:23]} Qc8 {[%emt 0:01:25]} 22. Rxa8 {[%emt 0:00:50]} Qxa8 {[%emt 0:00:04]} 23. b5 {[%emt 0:00:27]} Qa3 {[%emt 0:00:46]} 24. Qb2 {[%emt 0:01:06]} Qa5 {[%emt 0:01:16]} 25. b6 {[%emt 0:00:28]} Ba6 {[%emt 0:00:15]} 26. Ra1 {[%emt 0:00:30]} Qb5 {[%emt 0:00:06]} 27. Qxb5 {[%emt 0:00:23]} Bxb5 {[%emt 0:00:04]} 28. b7 {[%emt 0:00:26]} Bc6 {[%emt 0:00:29]} 29. Ra8+ {[%emt 0:00:12]} Bf8 {[%emt 0:00:17]} 30. Rxf8+ {[%emt 0:00:06]} Kxf8 {[%emt 0:00:08]} 31. b8=Q+ {[%emt 0:00:15]} Nxb8 {[%emt 0:00:06]} 32. Bxb8 {[%emt 0:00:11]} Bb5 {[%emt 0:00:27]} 33. f3 {[%emt 0:00:25]} Ke8 {[%emt 0:00:20]} 34. Kf2 {[%emt 0:00:27]} Kd7 {[%emt 0:00:55]} 35. e4 {[%emt 0:00:22]} f6 {[%emt 0:01:31]} 36. Ke3 {[%emt 0:01:20]} Kc6 {[%emt 0:00:16]} 37. e5 {[%emt 0:11:47]} fxe5 {[%emt 0:01:27]} 38. Bxe5 {[%emt 0:00:09]} g6 {[%emt 0:00:03]} 39. Kf4 {[%emt 0:00:10]} Bd3 {[%emt 0:00:26]} 40. Kg5 {[%emt 0:00:24]} h5 {[%emt 0:00:00]} 41. g4 {[%emt 0:00:28]} hxg4 {[%emt 0:02:53]} 42. fxg4 {[%emt 0:00:48]} Kd7 {[%emt 0:03:29]} 43. h4 {[%emt 0:01:12]} Ke8 {[%emt 0:03:15]} 44. Kf6 {[%emt 0:00:30]} Kd7 45. h5 gxh5 {[%emt 0:01:49]} 46. gxh5 {[%emt 0:00:31]} Ke8 {[%emt 0:00:39]} 47. Kxe6 {[%emt 0:00:13]} Be2 {[%emt 0:01:56]} 48. h6 {[%emt 0:00:10]} Bd3 {[%emt 0:00:23]} 49. Kxd5 {[%emt 0:00:12]} Kd7 {[%emt 0:00:53]} 50. c6+ {[%emt 0:00:08]} Ke7 {[%emt 0:00:27]} 51. Bd6+ {[%emt 0:00:23]} Kd8 {[%emt 0:00:44]} 52. Ke6 {[%emt 0:00:40]} Be4 {[%emt 0:01:38]} 53. c7+ {[%emt 0:00:25]} Kc8 {[%emt 0:00:09]} 54. Be5 {[%emt 0:00:25]} Bd3 {[%emt 0:01:10]} 55. d5 {[%emt 0:00:12] normal} 1-0

[Event "DVM U20w 2019"]
[Site "Braunschweig"]
[Date "2019.12.29"]
[Round "5"]
[White "de Veer, Mara"]
[Black "Möller, Hannah"]
[Result "0-1"]
[ECO "A49"]
[WhiteElo "1447"]
[BlackElo "1832"]
[Annotator "NA"]
[PlyCount "104"]
[EventDate "2019.12.27"]
[EventType "team-tourn"]
[EventRounds "7"]
[EventCountry "GER"]
[SourceTitle "playchess.com"]
[Source "ChessBase"]
[SourceQuality "1"]
[WhiteTeam "SC Borussia Lichtenberg"]
[BlackTeam "SV Lingen"]
[TimeControl "40/5400+30:1800+30"]

1. d4 {[%emt 0:00:00]} Nf6 {[%emt 0:00:00]} 2. Nf3 {[%emt 0:00:00]} g6 {[%emt 0:00:00]} 3. g3 {[%emt 0:00:00]} Bg7 {[%emt 0:00:00]} 4. Bg2 {[%emt 0:00:00]} d6 {[%emt 0:00:00]} 5. b3 {[%emt 0:00:16]} c6 {[%emt 0:00:32] unterminated} 6. Bb2 {[%emt 0:00:59]} O-O {[%emt 0:00:21]} 7. O-O {[%emt 0:00:19]} Bf5 {[%emt 0:01:33]} 8. Qc1 {[%emt 0:02:47]} Qc8 {[%emt 0:00:19]} 9. Re1 {[%emt 0:05:04]} h6 {[%emt 0:01:11]} 10. Nbd2 {[%emt 0:03:07]} Bh3 {[%emt 0:00:25]} 11. c4 {[%emt 0:02:38]} Bxg2 {[%emt 0:00:40]} 12. Kxg2 {[%emt 0:00:19]} Nbd7 {[%emt 0:00:04] unterminated} 13. Qc2 {[%emt 0:05:26]} Nh7 $14 {[%emt 0:00:50]} 14. Rac1 {[%emt 0:03:04]} e5 {[%emt 0:01:53]} 15. dxe5 {[%emt 0:01:29]} Nxe5 {[%emt 0:00:06]} 16. Nxe5 {[%emt 0:00:22]} dxe5 {[%emt 0:00:04]} 17. e4 {[%emt 0:01:12]} Ng5 {[%emt 0:00:33]} 18. h4 {[%emt 0:08:12]} Qh3+ {[%emt 0:01:42]} 19. Kg1 {[%emt 0:00:42]} Nh7 {[%emt 0:00:10]} 20. Qd1 {[%emt 0:08:56]} Nf6 {[%emt 0:06:27]} 21. Qf3 {[%emt 0:03:47]} Nh5 {[%emt 0:04:55]} 22. Qg2 {[%emt 0:02:40]} Qg4 {[%emt 0:00:06]} 23. Nf3 {[%emt 0:02:14]} Qe6 {[%emt 0:02:24]} 24. Rcd1 {[%emt 0:02:28]} Rad8 {[%emt 0:00:13]} 25. Kh2 {[%emt 0:03:50]} Rfe8 {[%emt 0:13:28]} 26. Qh3 {[%emt 0:05:15]} Qe7 {[%emt 0:03:16]} 27. Kg2 {[%emt 0:08:30]} Qc7 {[%emt 0:05:39]} 28. Qh1 {[%emt 0:09:04]} Qa5 {[%emt 0:04:31]} 29. a3 {[%emt 0:01:52]} Bf6 {[%emt 0:01:25]} 30. b4 {[%emt 0:04:14]} Qc7 {[%emt 0:03:18]} 31. c5 {[%emt 0:01:42]} Ng7 {[%emt 0:00:24]} 32. Qf1 {[%emt 0:01:32]} Ne6 {[%emt 0:00:36]} 33. Re2 {[%emt 0:02:28]} b6 {[%emt 0:04:26]} 34. cxb6 {[%emt 0:03:34]} axb6 {[%emt 0:00:06]} 35. Rc2 {[%emt 0:01:54]} Nd4 {[%emt 0:01:18]} 36. Rc4 {[%emt 0:02:37]} Nxf3 {[%emt 0:06:10]} 37. Kxf3 {[%emt 0:00:22]} Bg7 {[%emt 0:01:45]} 38. Kg2 {[%emt 0:00:55]} Qb7 {[%emt 0:03:12]} 39. Kh2 {[%emt 0:00:31]} Rd7 {[%emt 0:01:51]} 40. Rdc1 {[%emt 0:01:49]} Rc8 {[%emt 0:02:53]} 41. Qe2 {[%emt 0:30:54]} Rcd8 {[%emt 0:33:41]} 42. R1c2 {[%emt 0:02:59]} Rd6 {[%emt 0:00:13]} 43. Qe3 {[%emt 0:00:00]} R8d7 {[%emt 0:00:00]} 44. Qe2 {[%emt 0:00:00]} h5 {[%emt 0:00:00]} 45. Qe3 {[%emt 0:00:00]} f6 {[%emt 0:00:00]} 46. Bc1 {[%emt 0:00:00]} Bf8 {[%emt 0:00:00]} 47. Qb3 {[%emt 0:00:00]} Kh7 {[%emt 0:00:00]} 48. Qb2 {[%emt 0:00:00]} Qa8 {[%emt 0:00:00]} 49. R2c3 {[%emt 0:00:00]} b5 {[%emt 0:00:00]} 50. Rc5 {[%emt 0:00:00]} Re6 {[%emt 0:00:00]} 51. Qb3 {[%emt 0:00:00]} Red6 {[%emt 0:00:00]} 52. Rc2 {[%emt 0:00:00]} Rc7 {[%emt 0:00:00] normal} 0-1

[Event "DVM U20w 2019"]
[Site "Braunschweig"]
[Date "2019.12.29"]
[Round "5"]
[White "Kung, Fanny"]
[Black "Meijerink, Inken"]
[Result "0-1"]
[ECO "B20"]
[WhiteElo "1426"]
[BlackElo "1743"]
[Annotator "NA"]
[PlyCount "70"]
[EventDate "2019.12.27"]
[EventType "team-tourn"]
[EventRounds "7"]
[EventCountry "GER"]
[SourceTitle "playchess.com"]
[Source "ChessBase"]
[SourceQuality "1"]
[WhiteTeam "Leegebrucher SF"]
[BlackTeam "SK Nordhorn-Blanke"]
[TimeControl "40/5400+30:1800+30"]

1. e4 {[%emt 0:00:00]} c5 {[%emt 0:00:00]} 2. b3 {[%emt 0:01:23]} Nc6 {[%emt 0:01:41]} 3. Bb2 {[%emt 0:00:46]} d6 {[%emt 0:02:00]} 4. Nf3 {[%emt 0:03:30]} Nf6 {[%emt 0:01:23]} 5. Nc3 {[%emt 0:03:35]} g6 {[%emt 0:01:15]} 6. Bc4 {[%emt 0:11:17]} Bg7 {[%emt 0:01:46]} 7. Rb1 {[%emt 0:09:28]} O-O {[%emt 0:01:56]} 8. O-O {[%emt 0:00:18]} Bg4 {[%emt 0:01:58]} 9. h3 {[%emt 0:01:02]} Bd7 {[%emt 0:00:25]} 10. Re1 {[%emt 0:07:35]} a6 {[%emt 0:02:53]} 11. a4 {[%emt 0:02:16]} Qc7 {[%emt 0:03:11]} 12. d4 {[%emt 0:05:16]} cxd4 {[%emt 0:02:02]} 13. Nxd4 {[%emt 0:00:13]} Ne5 {[%emt 0:05:16]} 14. Bd3 {[%emt 0:06:13]} Rac8 {[%emt 0:06:01]} 15. Kh1 {[%emt 0:06:09]} Nc6 {[%emt 0:04:35]} 16. Nf3 {[%emt 0:05:44]} h6 {[%emt 0:03:25]} 17. Nd5 {[%emt 0:07:45]} Nxd5 {[%emt 0:01:47]} 18. Bxg7 {[%emt 0:00:46]} Kxg7 {[%emt 0:00:07]} 19. exd5 {[%emt 0:00:07]} Nb4 {[%emt 0:00:27]} 20. c4 {[%emt 0:02:15]} e5 {[%emt 0:04:12]} 21. Qd2 {[%emt 0:07:09]} a5 {[%emt 0:02:10]} 22. Nh2 {[%emt 0:02:13]} f5 {[%emt 0:02:02]} 23. Bf1 {[%emt 0:00:57]} Rce8 {[%emt 0:03:20]} 24. f3 {[%emt 0:03:55]} Rf7 {[%emt 0:03:09]} 25. g4 {[%emt 0:03:27]} Ref8 {[%emt 0:03:56]} 26. Bg2 {[%emt 0:02:57]} b6 {[%emt 0:05:09]} 27. Qe2 {[%emt 0:01:41]} Qd8 {[%emt 0:05:37]} 28. Nf1 {[%emt 0:01:58]} Qh4 {[%emt 0:01:02]} 29. Ne3 {[%emt 0:00:19]} fxg4 {[%emt 0:01:26]} 30. Nxg4 {[%emt 0:01:12]} Bxg4 {[%emt 0:00:17]} 31. fxg4 {[%emt 0:00:03]} Rf2 {[%emt 0:00:30]} 32. Qd1 {[%emt 0:01:08]} Rxg2 {[%emt 0:02:04]} 33. Kxg2 {[%emt 0:00:20]} Rf2+ {[%emt 0:00:09]} 34. Kg1 {[%emt 0:00:20]} Qg3+ {[%emt 0:00:12]} 35. Kh1 {[%emt 0:00:07]} Qh2# {[%emt 0:00:06] normal} 0-1

[Event "DVM U20w 2019"]
[Site "Braunschweig"]
[Date "2019.12.29"]
[Round "5"]
[White "Adelhardt, Lisa"]
[Black "Kiesel, Lara"]
[Result "0-1"]
[ECO "C02"]
[WhiteElo "1418"]
[BlackElo "1732"]
[Annotator "NA"]
[PlyCount "51"]
[EventDate "2019.12.27"]
[EventType "team-tourn"]
[EventRounds "7"]
[EventCountry "GER"]
[SourceTitle "playchess.com"]
[Source "ChessBase"]
[SourceQuality "1"]
[WhiteTeam "SC Erlangen 48/88"]
[BlackTeam "SK Lehrte 1919"]
[TimeControl "40/5400+30:1800+30"]

1. e4 {[%emt 0:00:00]} e6 {[%emt 0:00:00]} 2. d4 {[%emt 0:00:00]} d5 {[%emt 0:00:00]} 3. e5 {[%emt 0:00:00]} c5 {[%emt 0:00:00]} 4. c3 {[%emt 0:00:00]} Nc6 {[%emt 0:00:00]} 5. Nf3 {[%emt 0:00:00]} Qb6 {[%emt 0:00:00]} 6. Be2 {[%emt 0:02:26]} f6 {[%emt 0:00:00]} 7. O-O {[%emt 0:04:51]} fxe5 {[%emt 0:05:51]} 8. dxe5 {[%emt 0:06:29]} g6 {[%emt 0:00:30]} 9. Re1 {[%emt 0:03:15]} Bg7 {[%emt 0:01:16]} 10. Bd3 {[%emt 0:03:32]} Nge7 {[%emt 0:02:38]} 11. Nbd2 {[%emt 0:07:12]} O-O {[%emt 0:00:53]} 12. Bc2 {[%emt 0:02:53]} Qc7 {[%emt 0:03:12]} 13. Qe2 {[%emt 0:03:15]} Bd7 {[%emt 0:04:31]} 14. Nb3 {[%emt 0:10:04]} b6 {[%emt 0:00:32]} 15. a4 {[%emt 0:03:42]} Nf5 {[%emt 0:07:41]} 16. a5 {[%emt 0:10:43]} Rae8 {[%emt 0:02:06]} 17. axb6 {[%emt 0:11:04]} axb6 {[%emt 0:00:10]} 18. Kh1 {[%emt 0:01:27]} Nh6 {[%emt 0:04:53]} 19. h3 {[%emt 0:01:31]} Nf5 {[%emt 0:04:58]} 20. Ra6 {[%emt 0:05:11]} c4 {[%emt 0:04:31]} 21. Na1 {[%emt 0:04:49]} Na5 {[%emt 0:26:58]} 22. Be3 {[%emt 0:06:25]} Nxe3 {[%emt 0:02:59]} 23. Qxe3 {[%emt 0:00:50]} Rb8 {[%emt 0:00:23]} 24. b4 {[%emt 0:06:32]} Bc8 {[%emt 0:02:55]} 25. bxa5 {[%emt 0:02:12]} Bxa6 {[%emt 0:00:22] normal} 26. Nd4 {[%emt 0:00:35] normal} 0-1

[Event "DVM U20w 2019"]
[Site "Braunschweig"]
[Date "2019.12.29"]
[Round "5"]
[White "Margaryan, Venera"]
[Black "Krause, Ricarda Sophie"]
[Result "0-1"]
[ECO "D40"]
[WhiteElo "1383"]
[BlackElo "1491"]
[Annotator "NA"]
[PlyCount "53"]
[EventDate "2019.12.27"]
[EventType "team-tourn"]
[EventRounds "7"]
[EventCountry "GER"]
[SourceTitle "playchess.com"]
[Source "ChessBase"]
[SourceQuality "1"]
[WhiteTeam "SK Lehrte 1919"]
[BlackTeam "SC Erlangen 48/88"]
[WhiteTeamCountry "GER"]
[TimeControl "40/5400+30:1800+30"]

1. d4 {[%emt 0:00:00]} d5 {[%emt 0:00:00]} 2. c4 {[%emt 0:00:00]} e6 {[%emt 0:00:00]} 3. Nc3 {[%emt 0:00:00]} c5 {[%emt 0:00:34]} 4. Nf3 {[%emt 0:00:52]} Nf6 {[%emt 0:04:39]} 5. Bg5 {[%emt 0:00:53]} cxd4 {[%emt 0:06:24]} 6. Nxd4 {[%emt 0:03:48]} Be7 {[%emt 0:02:18]} 7. cxd5 {[%emt 0:01:34]} Nxd5 {[%emt 0:06:22]} 8. Bxe7 {[%emt 0:04:26]} Qxe7 {[%emt 0:02:14]} 9. Nxd5 {[%emt 0:02:02]} exd5 {[%emt 0:02:03]} 10. Rc1 {[%emt 0:01:36]} Qb4+ {[%emt 0:03:35]} 11. Qd2 {[%emt 0:00:49]} Qxd2+ {[%emt 0:00:50]} 12. Kxd2 {[%emt 0:00:06]} O-O {[%emt 0:00:36]} 13. Nb5 {[%emt 0:02:08]} Na6 {[%emt 0:03:32]} 14. g3 {[%emt 0:04:15]} Bd7 {[%emt 0:05:30]} 15. Nd6 {[%emt 0:05:51]} Bc6 {[%emt 0:03:48]} 16. Bg2 {[%emt 0:03:56]} Rfd8 {[%emt 0:06:39]} 17. Nf5 Bd7 18. Ne3 {[%emt 0:04:11]} Be6 {[%emt 0:10:31]} 19. a3 {[%emt 0:01:03]} Rab8 {[%emt 0:09:42]} 20. Rhd1 {[%emt 0:02:10]} d4 {[%emt 0:06:13]} 21. Nc2 {[%emt 0:01:44]} Nc5 {[%emt 0:04:50]} 22. Ke1 {[%emt 0:09:14]} Nb3 {[%emt 0:01:46]} 23. Rb1 {[%emt 0:04:12]} Bf5 {[%emt 0:01:57]} 24. e4 {[%emt 0:11:40]} dxe3 {[%emt 0:01:23]} 25. Rxd8+ {[%emt 0:00:19]} Rxd8 {[%emt 0:00:12]} 26. Rd1 {[%emt 0:00:35]} exf2+ {[%emt 0:01:50]} 27. Ke2 {normal} 0-1

[Event "DVM U20w 2019"]
[Site "Braunschweig"]
[Date "2019.12.29"]
[Round "5"]
[White "Strobel, Miriam"]
[Black "Thiele, Lea-Marie"]
[Result "1-0"]
[ECO "C02"]
[WhiteElo "1299"]
[BlackElo "1061"]
[Annotator "NA"]
[PlyCount "76"]
[EventDate "2019.12.27"]
[EventType "team-tourn"]
[EventRounds "7"]
[EventCountry "GER"]
[SourceTitle "playchess.com"]
[Source "ChessBase"]
[SourceQuality "1"]
[WhiteTeam "SC Erlangen 48/88"]
[BlackTeam "SK Lehrte 1919"]
[TimeControl "40/5400+30:1800+30"]

1. e4 {[%emt 0:00:00]} e6 {[%emt 0:00:00]} 2. d4 {[%emt 0:00:00]} d5 {[%emt 0:00:00]} 3. e5 {[%emt 0:00:00]} c5 {[%emt 0:00:15]} 4. c3 {[%emt 0:00:00]} Nc6 {[%emt 0:00:09]} 5. Nf3 {[%emt 0:00:06]} Qb6 {[%emt 0:00:42]} 6. Be2 {[%emt 0:01:00]} cxd4 {[%emt 0:00:22]} 7. cxd4 {[%emt 0:00:17]} Nh6 {[%emt 0:00:10]} 8. Nc3 {[%emt 0:02:54]} Nf5 {[%emt 0:01:01]} 9. Be3 {[%emt 0:02:04]} Qxb2 {[%emt 0:06:07]} 10. Rc1 {[%emt 0:11:54]} Bb4 {[%emt 0:00:28]} 11. Rc2 {[%emt 0:03:44]} Bxc3+ {[%emt 0:00:37]} 12. Bd2 {[%emt 0:01:34]} Bxd2+ {[%emt 0:00:13]} 13. Qxd2 {[%emt 0:00:23]} Qb4 {[%emt 0:01:42]} 14. Rc3 {[%emt 0:08:06]} Nfxd4 {[%emt 0:00:45]} 15. a3 {[%emt 0:00:21]} Nxf3+ {[%emt 0:00:35]} 16. Bxf3 {[%emt 0:00:27]} Qb6 {[%emt 0:01:17]} 17. Qg5 {[%emt 0:16:50]} Qd4 {[%emt 0:01:16]} 18. Re3 {[%emt 0:00:25]} Bd7 {[%emt 0:01:49]} 19. O-O {[%emt 0:00:49]} h6 {[%emt 0:00:12]} 20. Qxg7 {[%emt 0:05:11]} O-O-O {[%emt 0:01:13]} 21. Rc1 {[%emt 0:04:12]} Rdg8 {[%emt 0:00:24]} 22. Qxf7 {[%emt 0:02:02]} Kb8 {[%emt 0:04:01]} 23. Qxd7 {[%emt 0:02:03]} Rc8 {[%emt 0:08:57]} 24. Qd6+ Ka8 {[%emt 0:00:20]} 25. Qxe6 {[%emt 0:07:46]} Ne7 {[%emt 0:00:37]} 26. Ree1 {[%emt 0:03:25]} Qd2 {[%emt 0:02:07]} 27. Rb1 {[%emt 0:05:30]} Rc2 {[%emt 0:03:30]} 28. Rf1 {[%emt 0:00:27]} Re8 {[%emt 0:02:17]} 29. Qd7 {[%emt 0:00:37]} Rb8 {[%emt 0:00:50]} 30. Qxe7 {[%emt 0:00:23]} Qa5 {[%emt 0:11:41]} 31. e6 {[%emt 0:02:30]} Rc7 {[%emt 0:01:10]} 32. Qf6 {[%emt 0:01:31]} Rh7 {[%emt 0:02:14]} 33. Rfe1 {[%emt 0:00:51]} Re8 {[%emt 0:02:10]} 34. Bh5 {[%emt 0:01:44]} Qxa3 {[%emt 0:04:48]} 35. Bxe8 {[%emt 0:00:12]} Re7 {[%emt 0:00:27]} 36. Bd7 {[%emt 0:00:24]} a6 {[%emt 0:00:33]} 37. Qf8+ {[%emt 0:00:27]} Ka7 {[%emt 0:00:12]} 38. Qd8 {[%emt 0:00:16]} Qd6 {normal} 1-0

[Event "DVM U20w 2019"]
[Site "Braunschweig"]
[Date "2019.12.29"]
[Round "5"]
[White "Wilhelm, Anna-Lena"]
[Black "Cerkez, Lorena"]
[Result "1/2-1/2"]
[ECO "B09"]
[WhiteElo "1291"]
[BlackElo "1000"]
[Annotator "NA"]
[PlyCount "22"]
[EventDate "2019.12.27"]
[EventType "team-tourn"]
[EventRounds "7"]
[EventCountry "GER"]
[SourceTitle "playchess.com"]
[Source "ChessBase"]
[SourceQuality "1"]
[WhiteTeam "SG Blau-Weiß Stadtilm"]
[BlackTeam "Düsseldorfer SK"]
[TimeControl "40/5400+30:1800+30"]

1. d4 {[%emt 0:00:00]} Nf6 {[%emt 0:00:00]} 2. Nc3 {[%emt 0:00:00]} g6 {[%emt 0:00:00]} 3. e4 {[%emt 0:00:00]} d6 {[%emt 0:00:15]} 4. f4 {[%emt 0:00:43]} Bg7 {[%emt 0:01:35]} 5. Nf3 {[%emt 0:00:54]} O-O {[%emt 0:00:30]} 6. Be2 {[%emt 0:00:30]} c6 {[%emt 0:22:11]} 7. Be3 {[%emt 0:08:28]} Qc7 {[%emt 0:04:39]} 8. e5 {[%emt 0:13:17]} dxe5 {[%emt 0:02:24]} 9. fxe5 {[%emt 0:00:15]} Nfd7 {[%emt 0:01:09]} 10. Qd2 {[%emt 0:04:50]} e6 {[%emt 0:00:23]} 11. O-O-O {[%emt 0:04:00]} b5 {[%emt 0:00:46] normal} 1/2-1/2

[Event "DVM U20w 2019"]
[Site "Braunschweig"]
[Date "2019.12.29"]
[Round "5"]
[White "Stelter, Finja"]
[Black "Strobel, Joanna"]
[Result "0-1"]
[ECO "C50"]
[WhiteElo "1054"]
[BlackElo "1140"]
[Annotator "NA"]
[PlyCount "138"]
[EventDate "2019.12.27"]
[EventType "team-tourn"]
[EventRounds "7"]
[EventCountry "GER"]
[SourceTitle "playchess.com"]
[Source "ChessBase"]
[SourceQuality "1"]
[WhiteTeam "SK Lehrte 1919"]
[BlackTeam "SC Erlangen 48/88"]
[TimeControl "40/5400+30:1800+30"]

1. e4 {[%emt 0:00:00]} e5 {[%emt 0:00:00]} 2. Nf3 {[%emt 0:00:00]} Nc6 {[%emt 0:00:00]} 3. Bc4 {[%emt 0:00:00]} Bc5 {[%emt 0:00:05]} 4. d3 {[%emt 0:00:00]} h6 {[%emt 0:00:13]} 5. Nc3 {[%emt 0:00:00]} d6 {[%emt 0:00:31]} 6. h3 {[%emt 0:00:06]} Be6 {[%emt 0:00:15]} 7. Bb3 {[%emt 0:00:08]} Nf6 {[%emt 0:00:11]} 8. Be3 {[%emt 0:00:10]} Bb6 {[%emt 0:00:10]} 9. Qd2 {[%emt 0:00:18]} Qd7 {[%emt 0:00:27]} 10. a3 {[%emt 0:00:42]} O-O-O {[%emt 0:01:13]} 11. Ba2 {[%emt 0:02:15]} Bxa2 {[%emt 0:03:02]} 12. Nxa2 {[%emt 0:00:29]} d5 {[%emt 0:00:23]} 13. Bxb6 {[%emt 0:01:43]} cxb6 {[%emt 0:00:25]} 14. Nc3 {[%emt 0:02:08]} d4 {[%emt 0:02:00]} 15. Ne2 {[%emt 0:00:39]} g5 {[%emt 0:08:01]} 16. Rc1 {[%emt 0:04:53]} Kb8 {[%emt 0:03:07]} 17. h4 {[%emt 0:02:03]} Qg4 {[%emt 0:09:11]} 18. Rh2 {[%emt 0:02:16]} gxh4 {[%emt 0:17:55]} 19. Nxh4 {[%emt 0:01:38]} Qe6 {[%emt 0:03:02]} 20. Nf5 {[%emt 0:01:04]} Ng4 {[%emt 0:01:54]} 21. Rh4 {[%emt 0:02:34]} h5 {[%emt 0:01:24]} 22. Neg3 {[%emt 0:05:31]} Qg6 {[%emt 0:07:28]} 23. c3 {[%emt 0:05:27]} dxc3 {[%emt 0:04:33]} 24. Rxc3 {[%emt 0:00:40]} Nd4 {[%emt 0:01:20]} 25. Nxd4 {[%emt 0:04:57]} exd4 {[%emt 0:00:33]} 26. Rc2 {[%emt 0:00:47]} Qf6 {[%emt 0:00:18]} 27. Rh1 {[%emt 0:00:17]} h4 {[%emt 0:02:28]} 28. Nf5 {[%emt 0:01:11]} Rde8 {[%emt 0:02:21]} 29. Qf4+ {[%emt 0:02:36]} Ne5 {[%emt 0:03:26]} 30. Rxh4 {[%emt 0:06:54]} Rxh4 {[%emt 0:00:59]} 31. Qxh4 {[%emt 0:00:09]} Nxd3+ {[%emt 0:04:21]} 32. Ke2 {[%emt 0:01:20]} Qxh4 {[%emt 0:01:44]} 33. Nxh4 {[%emt 0:00:19]} Nc5 {[%emt 0:00:21]} 34. Kf3 {[%emt 0:04:03]} Nxe4 {[%emt 0:01:14]} 35. Nf5 {[%emt 0:02:17]} d3 {[%emt 0:01:04]} 36. Rc1 {[%emt 0:03:28]} Nd2+ {[%emt 0:01:22]} 37. Kf4 {[%emt 0:01:00]} Nb3 {[%emt 0:00:27]} 38. Rd1 {[%emt 0:00:26]} d2 {[%emt 0:02:12]} 39. Ne3 {[%emt 0:00:40]} Rc8 {[%emt 0:02:21]} 40. Kf3 {[%emt 0:01:05]} Rd8 {[%emt 0:03:28]} 41. Ke2 {[%emt 0:30:41]} Nc1+ {[%emt 0:31:24]} 42. Kf1 {[%emt 0:00:21]} Kc7 {[%emt 0:03:38]} 43. Nc4 {[%emt 0:00:23]} Nb3 {[%emt 0:01:17]} 44. Ke2 {[%emt 0:00:35]} Nc1+ {[%emt 0:00:56]} 45. Ke3 {[%emt 0:00:41]} Rd3+ {[%emt 0:01:06]} 46. Ke4 {[%emt 0:00:28]} f5+ {[%emt 0:00:37]} 47. Kxf5 {[%emt 0:00:31]} Nb3 {[%emt 0:00:09]} 48. g4 {[%emt 0:00:46]} Rd5+ {[%emt 0:00:21]} 49. Ke6 {[%emt 0:00:28]} Rd4 {[%emt 0:01:27]} 50. Ne3 {[%emt 0:00:31]} Kc6 {[%emt 0:04:15]} 51. g5 {[%emt 0:00:46]} Rf4 {[%emt 0:01:21]} 52. g6 {[%emt 0:01:09]} Nc5+ {[%emt 0:01:01]} 53. Ke7 {[%emt 0:00:34]} Re4+ {[%emt 0:01:34]} 54. Kf7 {[%emt 0:00:55]} Rf4+ {[%emt 0:00:12]} 55. Kg8 {[%emt 0:00:46]} Ne6 {[%emt 0:00:00]} 56. g7 {[%emt 0:00:00]} Rxf2 {[%emt 0:00:00]} 57. Nf1 {[%emt 0:00:00]} Rg2 {[%emt 0:00:00]} 58. Rxd2 {[%emt 0:00:00]} Rxg7+ {[%emt 0:00:00]} 59. Kh8 {[%emt 0:00:00]} Rd7 {[%emt 0:00:00]} 60. Rc2+ {[%emt 0:00:00]} Kb5 {[%emt 0:00:00]} 61. b3 {[%emt 0:00:00]} Nd4 {[%emt 0:00:00]} 62. Rc3 {[%emt 0:00:00]} a5 {[%emt 0:00:00]} 63. Ne3 {[%emt 0:00:00]} Ne2 {[%emt 0:00:00]} 64. Rc2 {[%emt 0:00:00]} Nf4 {[%emt 0:00:00]} 65. Rc4 {[%emt 0:00:00]} Rd3 {[%emt 0:00:00]} 66. Rxf4 {[%emt 0:00:00]} Rxe3 {[%emt 0:00:00]} 67. a4+ {[%emt 0:00:00]} Ka6 {[%emt 0:00:00]} 68. Rf8 {[%emt 0:00:00]} b5 69. Rf6+ {[%emt 0:00:00]} b6 {[%emt 0:00:00] normal} 0-1